[Event "*** Titled Tuesday Blitz"]
[Site "Chess.com"]
[Date "2018.08.07"]
[Round "8"]
[White "Alexander_Moskalenko"]
[Black "Zaven_ChessMood"]
[Result "1-0"]
[WhiteElo "2844"]
[BlackElo "2880"]
[TimeControl "180+2"]
[EndTime "14:45:48 PDT"]
[Termination "Alexander_Moskalenko won by resignation"]

1. Nf3 {[%clk 0:03:01.9]} 1... d5 {[%clk 0:03:00]} 2. c4 {[%clk 0:03:03.8]} 2...
d4 {[%clk 0:03:01]} 3. b4 {[%clk 0:03:01.9]} 3... g5 {[%clk 0:03:01.8]} 4. Nxg5
{[%clk 0:02:46.9]} 4... e5 {[%clk 0:03:02.4]} 5. d3 {[%clk 0:02:46.4]} 5...
Bxb4+ {[%clk 0:03:02.3]} 6. Bd2 {[%clk 0:02:47.8]} 6... Be7 {[%clk 0:03:00.6]}
7. Nf3 {[%clk 0:02:44.7]} 7... Nc6 {[%clk 0:03:01.8]} 8. g3 {[%clk 0:02:46]}
8... h5 {[%clk 0:03:01.8]} 9. Bg2 {[%clk 0:02:38.5]} 9... h4 {[%clk 0:03:01.8]}
10. gxh4 {[%clk 0:02:23.5]} 10... Bxh4 {[%clk 0:03:01.8]} 11. Nxh4 {[%clk
0:02:24.1]} 11... Qxh4 {[%clk 0:03:01.9]} 12. Bxc6+ {[%clk 0:02:26]} 12... bxc6
{[%clk 0:03:02.4]} 13. Qa4 {[%clk 0:02:27.9]} 13... Bd7 {[%clk 0:03:02.8]} 14.
Qa5 {[%clk 0:02:27.1]} 14... f6 {[%clk 0:03:01.7]} 15. Na3 {[%clk 0:02:25.4]}
15... Ne7 {[%clk 0:02:58.5]} 16. Qxc7 {[%clk 0:02:22.8]} 16... Nf5 {[%clk
0:02:58.2]} 17. Rb1 {[%clk 0:02:12.9]} 17... Rc8 {[%clk 0:02:44.3]} 18. Rb8
{[%clk 0:02:13.3]} 18... Ke7 {[%clk 0:02:37.8]} 19. Rxc8 {[%clk 0:02:14.2]}
19... Rxc8 {[%clk 0:02:39.4]} 20. Qxa7 {[%clk 0:02:15.7]} 20... Ke6 {[%clk
0:02:35.5]} 21. Nc2 {[%clk 0:02:15.7]} 21... Qh3 {[%clk 0:02:28.3]} 22. Nb4
{[%clk 0:02:09.9]} 22... Qg2 {[%clk 0:02:27.7]} 23. Rf1 {[%clk 0:02:10.5]} 23...
Ne7 {[%clk 0:02:20.2]} 24. Na6 {[%clk 0:02:11.2]} 24... c5 {[%clk 0:02:14.8]}
25. Nxc5+ {[%clk 0:02:11.5]} 25... Rxc5 {[%clk 0:02:16]} 26. Qxc5 {[%clk
0:02:13.4]} 26... Kf7 {[%clk 0:02:17.7]} 27. Bb4 {[%clk 0:02:08.6]} 27... Bh3
{[%clk 0:02:15]} 28. Qxe7+ {[%clk 0:02:04.4]} 28... Kg6 {[%clk 0:02:16.5]} 29.
Qe8+ {[%clk 0:02:04.6]} 29... Kf5 {[%clk 0:02:17.5]} 30. Qc8+ {[%clk 0:01:25.8]}
30... Kg6 {[%clk 0:02:16.9]} 31. Qg8+ {[%clk 0:01:26.4]} 1-0

[Event "*** Titled Tuesday Blitz"]
[Site "Chess.com"]
[Date "2018.08.07"]
[Round "8"]
[White "platy3"]
[Black "Zhuu96"]
[Result "1-0"]
[WhiteElo "2764"]
[BlackElo "2832"]
[TimeControl "180+2"]
[EndTime "14:46:02 PDT"]
[Termination "platy3 won by resignation"]

1. e4 {[%clk 0:03:01.1]} 1... e5 {[%clk 0:02:58.9]} 2. Nf3 {[%clk 0:03:02.2]}
2... Nf6 {[%clk 0:02:59.2]} 3. Nxe5 {[%clk 0:03:02.8]} 3... d6 {[%clk
0:02:59.7]} 4. Nf3 {[%clk 0:03:04]} 4... Nxe4 {[%clk 0:03:00.9]} 5. c4 {[%clk
0:03:03.7]} 5... Be7 {[%clk 0:02:58.9]} 6. d4 {[%clk 0:03:03]} 6... O-O {[%clk
0:02:57.1]} 7. Bd3 {[%clk 0:03:01.1]} 7... Nf6 {[%clk 0:02:57.3]} 8. h3 {[%clk
0:02:58.9]} 8... d5 {[%clk 0:02:56.6]} 9. O-O {[%clk 0:02:58.3]} 9... dxc4
{[%clk 0:02:55.8]} 10. Bxc4 {[%clk 0:03:00.2]} 10... Bf5 {[%clk 0:02:56.6]} 11.
Nc3 {[%clk 0:02:59.4]} 11... Nbd7 {[%clk 0:02:50.6]} 12. Re1 {[%clk 0:02:57.9]}
12... Nb6 {[%clk 0:02:51.1]} 13. Bb3 {[%clk 0:02:59.2]} 13... c6 {[%clk
0:02:45.4]} 14. Ne5 {[%clk 0:02:59.3]} 14... Nbd5 {[%clk 0:02:38.9]} 15. Qf3
{[%clk 0:02:58.6]} 15... Be6 {[%clk 0:02:38.9]} 16. Bg5 {[%clk 0:02:56]} 16...
Nxc3 {[%clk 0:02:24.3]} 17. bxc3 {[%clk 0:02:55.5]} 17... Bd5 {[%clk 0:02:15.7]}
18. Qf5 {[%clk 0:02:37.5]} 18... Bxb3 {[%clk 0:02:06.3]} 19. axb3 {[%clk
0:02:37.6]} 19... Nd5 {[%clk 0:02:07.7]} 20. Bxe7 {[%clk 0:02:34.8]} 20... Nxe7
{[%clk 0:02:08.8]} 21. Qd7 {[%clk 0:02:33.1]} 21... Qxd7 {[%clk 0:02:05.9]} 22.
Nxd7 {[%clk 0:02:33.7]} 22... Rfe8 {[%clk 0:02:07]} 23. Nb6 {[%clk 0:02:20.1]}
23... axb6 {[%clk 0:01:59.2]} 24. Rxa8 {[%clk 0:02:21.4]} 24... Rxa8 {[%clk
0:02:00.3]} 25. Rxe7 {[%clk 0:02:22.9]} 25... Rb8 {[%clk 0:02:01.7]} 26. f4
{[%clk 0:02:18.7]} 26... h5 {[%clk 0:02:00.4]} 27. g4 {[%clk 0:02:18.3]} 27...
hxg4 {[%clk 0:01:58.4]} 28. hxg4 {[%clk 0:02:20.2]} 28... g5 {[%clk 0:01:59]}
29. fxg5 {[%clk 0:02:16.8]} 29... Kg7 {[%clk 0:01:59.7]} 30. Kf2 {[%clk
0:02:17.8]} 30... Kg6 {[%clk 0:02:00.7]} 31. Kf3 {[%clk 0:02:19]} 31... Rh8
{[%clk 0:01:48.5]} 32. Rxb7 {[%clk 0:02:16.2]} 32... Rh3+ {[%clk 0:01:48.8]} 33.
Kf4 {[%clk 0:02:17.5]} 33... Rxc3 {[%clk 0:01:49.4]} 34. Rxb6 {[%clk 0:02:18.1]}
34... Rc1 {[%clk 0:01:48.1]} 35. d5 {[%clk 0:02:17.7]} 35... f6 {[%clk
0:01:44.8]} 36. dxc6 {[%clk 0:02:09.2]} 36... fxg5+ {[%clk 0:01:43.7]} 37. Ke5
{[%clk 0:02:10.5]} 37... Kf7 {[%clk 0:01:44.6]} 38. Kd6 {[%clk 0:02:09.5]} 38...
Rd1+ {[%clk 0:01:44.9]} 39. Kc7 {[%clk 0:02:10.5]} 39... Rd4 {[%clk 0:01:45]}
40. Kb7 {[%clk 0:02:10]} 1-0

[Event "*** Titled Tuesday Blitz"]
[Site "Chess.com"]
[Date "2018.08.07"]
[Round "8"]
[White "SergeiAza"]
[Black "AquivaRubinstein"]
[Result "1-0"]
[WhiteElo "2695"]
[BlackElo "2404"]
[TimeControl "180+2"]
[EndTime "14:46:43 PDT"]
[Termination "SergeiAza won by resignation"]

1. e4 {[%clk 0:03:01.9]} 1... e6 {[%clk 0:03:00.6]} 2. d4 {[%clk 0:03:02.3]}
2... d5 {[%clk 0:03:01.5]} 3. Nd2 {[%clk 0:03:03.9]} 3... c5 {[%clk 0:03:01.5]}
4. exd5 {[%clk 0:03:03.1]} 4... Qxd5 {[%clk 0:03:02.5]} 5. Ngf3 {[%clk 0:03:04]}
5... cxd4 {[%clk 0:03:03.7]} 6. Bc4 {[%clk 0:03:05.4]} 6... Qd6 {[%clk
0:03:04.8]} 7. O-O {[%clk 0:03:06.9]} 7... Nf6 {[%clk 0:03:06]} 8. Nb3 {[%clk
0:03:08.4]} 8... Nc6 {[%clk 0:03:07.2]} 9. Nbxd4 {[%clk 0:03:10]} 9... Nxd4
{[%clk 0:03:08.3]} 10. Nxd4 {[%clk 0:03:11.6]} 10... a6 {[%clk 0:03:09.5]} 11.
Bb3 {[%clk 0:03:09.5]} 11... Qc7 {[%clk 0:03:08]} 12. Qf3 {[%clk 0:03:09.7]}
12... Be7 {[%clk 0:02:22.6]} 13. Bf4 {[%clk 0:03:02.3]} 13... Qc5 {[%clk
0:02:13.5]} 14. Be3 {[%clk 0:02:44.4]} 14... Qh5 {[%clk 0:02:07.3]} 15. Ba4+
{[%clk 0:02:31.6]} 15... Kf8 {[%clk 0:01:44.2]} 16. Qxh5 {[%clk 0:02:32.2]}
16... Nxh5 {[%clk 0:01:44.3]} 17. Rfe1 {[%clk 0:02:33.4]} 17... Nf6 {[%clk
0:01:42.2]} 18. Rad1 {[%clk 0:02:34.3]} 18... b5 {[%clk 0:01:36.6]} 19. Bb3
{[%clk 0:02:34.8]} 19... Bb7 {[%clk 0:01:37.6]} 20. f3 {[%clk 0:02:31.4]} 20...
Nd5 {[%clk 0:01:24.5]} 21. Bf2 {[%clk 0:02:28.8]} 21... g5 {[%clk 0:01:15.2]}
22. c3 {[%clk 0:02:16.1]} 22... Bf6 {[%clk 0:01:12.6]} 23. Nxe6+ {[%clk
0:02:10.8]} 23... fxe6 {[%clk 0:01:09.4]} 24. Rxe6 {[%clk 0:02:12.3]} 24... Kg7
{[%clk 0:00:31.5]} 25. Bxd5 {[%clk 0:02:12.1]} 25... Rad8 {[%clk 0:00:30.4]} 26.
Rxf6 {[%clk 0:02:09.9]} 26... Rxd5 {[%clk 0:00:15.5]} 27. Rxd5 {[%clk
0:02:09.8]} 27... Bxd5 {[%clk 0:00:16.7]} 28. Bd4 {[%clk 0:02:10.7]} 1-0

[Event "*** Titled Tuesday Blitz"]
[Site "Chess.com"]
[Date "2018.08.07"]
[Round "8"]
[White "NemtsevIgor"]
[Black "Macron20hTF1"]
[Result "1-0"]
[WhiteElo "2387"]
[BlackElo "2333"]
[TimeControl "180+2"]
[EndTime "14:47:00 PDT"]
[Termination "NemtsevIgor won by resignation"]

1. d3 {[%clk 0:03:01.9]} 1... e5 {[%clk 0:02:58.8]} 2. c3 {[%clk 0:03:02.8]}
2... d5 {[%clk 0:02:59.3]} 3. Nd2 {[%clk 0:03:04.1]} 3... Nf6 {[%clk 0:03:00.8]}
4. h3 {[%clk 0:03:05.4]} 4... Bc5 {[%clk 0:03:02.3]} 5. g4 {[%clk 0:03:06.4]}
5... O-O {[%clk 0:03:02.9]} 6. Bg2 {[%clk 0:03:06.8]} 6... Re8 {[%clk
0:03:03.9]} 7. g5 {[%clk 0:03:04.9]} 7... Nh5 {[%clk 0:03:04.1]} 8. Nf1 {[%clk
0:03:00.4]} 8... Nc6 {[%clk 0:02:52.5]} 9. Qb3 {[%clk 0:02:57]} 9... Be6 {[%clk
0:02:48.2]} 10. Qxb7 {[%clk 0:02:56]} 10... Qd7 {[%clk 0:02:41.9]} 11. Qb5
{[%clk 0:02:53.6]} 11... Bb6 {[%clk 0:02:35.7]} 12. Bf3 {[%clk 0:02:48.7]} 12...
Rab8 {[%clk 0:02:30.9]} 13. Qa4 {[%clk 0:02:47.5]} 13... g6 {[%clk 0:01:58.7]}
14. Bxh5 {[%clk 0:02:46.7]} 14... gxh5 {[%clk 0:02:00.6]} 15. Qh4 {[%clk
0:02:45]} 15... Ne7 {[%clk 0:01:50.6]} 16. Qxh5 {[%clk 0:02:44.1]} 16... Bf5
{[%clk 0:01:47.3]} 17. Ng3 {[%clk 0:02:41.1]} 17... Bg6 {[%clk 0:01:48.5]} 18.
Qg4 {[%clk 0:02:40.7]} 18... Qc6 {[%clk 0:01:38.3]} 19. h4 {[%clk 0:02:35.6]}
19... Qc5 {[%clk 0:01:20.7]} 20. Nh3 {[%clk 0:02:19.1]} 20... Ba5 {[%clk
0:00:46.7]} 21. O-O {[%clk 0:02:03.4]} 21... Bxc3 {[%clk 0:00:34.3]} 22. bxc3
{[%clk 0:02:03.2]} 22... Qxc3 {[%clk 0:00:36.2]} 23. Be3 {[%clk 0:02:00.1]}
23... Rb4 {[%clk 0:00:37.4]} 24. Qd7 {[%clk 0:01:56.7]} 24... Kf8 {[%clk
0:00:33]} 25. h5 {[%clk 0:01:43.7]} 25... Rh4 {[%clk 0:00:20]} 26. hxg6 {[%clk
0:01:39.5]} 26... Rxh3 {[%clk 0:00:20.5]} 27. Qxh3 {[%clk 0:01:39.7]} 27... Kg7
{[%clk 0:00:22.4]} 28. Qxh7+ {[%clk 0:01:37.6]} 1-0

[Event "*** Titled Tuesday Blitz"]
[Site "Chess.com"]
[Date "2018.08.07"]
[Round "8"]
[White "Drags95"]
[Black "Indianlad"]
[Result "0-1"]
[WhiteElo "2623"]
[BlackElo "2747"]
[TimeControl "180+2"]
[EndTime "14:47:02 PDT"]
[Termination "Indianlad won by resignation"]

1. e4 {[%clk 0:03:01.6]} 1... c6 {[%clk 0:03:01.2]} 2. d4 {[%clk 0:03:00.5]}
2... d5 {[%clk 0:03:03.1]} 3. e5 {[%clk 0:03:01.6]} 3... Bf5 {[%clk 0:03:04.6]}
4. Nf3 {[%clk 0:03:02.5]} 4... e6 {[%clk 0:03:06.1]} 5. Be2 {[%clk 0:03:04]}
5... Ne7 {[%clk 0:03:07.6]} 6. O-O {[%clk 0:03:04.1]} 6... c5 {[%clk 0:03:09.1]}
7. Be3 {[%clk 0:02:57.8]} 7... Nec6 {[%clk 0:03:07.8]} 8. dxc5 {[%clk
0:02:27.9]} 8... Nd7 {[%clk 0:03:08.3]} 9. c4 {[%clk 0:02:24.1]} 9... dxc4
{[%clk 0:03:08.3]} 10. Na3 {[%clk 0:02:25.2]} 10... Bxc5 {[%clk 0:03:05.5]} 11.
Bxc5 {[%clk 0:02:21.1]} 11... Nxc5 {[%clk 0:03:07.4]} 12. Nxc4 {[%clk
0:02:22.4]} 12... O-O {[%clk 0:03:08.5]} 13. Nd6 {[%clk 0:02:20.9]} 13... Bg4
{[%clk 0:03:08]} 14. Rc1 {[%clk 0:02:19.1]} 14... Qb6 {[%clk 0:03:02.1]} 15. Qc2
{[%clk 0:02:05.7]} 15... Bxf3 {[%clk 0:03:01.8]} 16. Bxf3 {[%clk 0:02:04.1]}
16... Nd7 {[%clk 0:03:01.9]} 17. Bxc6 {[%clk 0:01:53.5]} 17... bxc6 {[%clk
0:03:03.8]} 18. Nc4 {[%clk 0:01:54.6]} 18... Qc5 {[%clk 0:03:01.6]} 19. Qe4
{[%clk 0:01:51.2]} 19... Rfd8 {[%clk 0:03:00.2]} 20. Rfd1 {[%clk 0:01:49.4]}
20... h6 {[%clk 0:02:54.6]} 21. g3 {[%clk 0:01:33.8]} 21... a5 {[%clk
0:02:36.4]} 22. Kg2 {[%clk 0:01:27.7]} 22... a4 {[%clk 0:02:36.5]} 23. Rc3
{[%clk 0:01:26.5]} 23... Qb4 {[%clk 0:02:37.2]} 24. a3 {[%clk 0:01:25.9]} 24...
Qe7 {[%clk 0:02:33.9]} 25. Qxc6 {[%clk 0:01:23.1]} 25... Rac8 {[%clk 0:02:31.4]}
26. Qd6 {[%clk 0:01:23.2]} 26... Qe8 {[%clk 0:02:22.2]} 27. Qd4 {[%clk
0:01:17.9]} 27... Nxe5 {[%clk 0:02:02.6]} 28. Nd6 {[%clk 0:01:18.1]} 28... Rxc3
{[%clk 0:02:01.8]} 29. Nxe8 {[%clk 0:00:53.7]} 29... Rxd4 {[%clk 0:02:02.2]} 30.
Rxd4 {[%clk 0:00:55.6]} 30... Rb3 {[%clk 0:01:57.7]} 31. Rb4 {[%clk 0:00:55.1]}
31... Nd3 {[%clk 0:01:56.4]} 32. Rxa4 {[%clk 0:00:55.1]} 32... Rxb2 {[%clk
0:01:57.2]} 33. Kf3 {[%clk 0:00:54.2]} 33... Nxf2 {[%clk 0:01:54.5]} 34. Nd6
{[%clk 0:00:55.1]} 34... f5 {[%clk 0:01:54.4]} 35. Ra8+ {[%clk 0:00:53.7]} 35...
Kh7 {[%clk 0:01:54]} 36. a4 {[%clk 0:00:53.7]} 36... Ng4 {[%clk 0:01:54.8]} 0-1

[Event "*** Titled Tuesday Blitz"]
[Site "Chess.com"]
[Date "2018.08.07"]
[Round "8"]
[White "gena217"]
[Black "GMG"]
[Result "1-0"]
[WhiteElo "2728"]
[BlackElo "2734"]
[TimeControl "180+2"]
[EndTime "14:47:15 PDT"]
[Termination "gena217 won by resignation"]

1. e4 {[%clk 0:03:01.9]} 1... d5 {[%clk 0:03:00.6]} 2. exd5 {[%clk 0:03:02.5]}
2... Qxd5 {[%clk 0:03:02.5]} 3. Nc3 {[%clk 0:03:03.8]} 3... Qa5 {[%clk
0:03:03.3]} 4. d4 {[%clk 0:03:05]} 4... Nf6 {[%clk 0:03:04.7]} 5. Nf3 {[%clk
0:03:04.9]} 5... c6 {[%clk 0:03:06.1]} 6. Ne5 {[%clk 0:03:05.5]} 6... Be6 {[%clk
0:03:06.9]} 7. Bc4 {[%clk 0:02:53.8]} 7... Bxc4 {[%clk 0:03:03.9]} 8. Nxc4
{[%clk 0:02:55.7]} 8... Qf5 {[%clk 0:03:00]} 9. O-O {[%clk 0:02:40.7]} 9... e6
{[%clk 0:03:00.8]} 10. Ne2 {[%clk 0:02:34.3]} 10... Nbd7 {[%clk 0:02:58.8]} 11.
Bf4 {[%clk 0:02:33.3]} 11... Nb6 {[%clk 0:02:33.2]} 12. b3 {[%clk 0:02:16]}
12... Nxc4 {[%clk 0:02:24.3]} 13. bxc4 {[%clk 0:02:17.9]} 13... Be7 {[%clk
0:02:25.8]} 14. Rb1 {[%clk 0:02:17.9]} 14... b6 {[%clk 0:02:27.2]} 15. Be5
{[%clk 0:02:04.1]} 15... O-O {[%clk 0:02:28]} 16. Rb3 {[%clk 0:02:04.1]} 16...
Nd7 {[%clk 0:02:15.4]} 17. Rf3 {[%clk 0:02:04]} 17... Qh5 {[%clk 0:02:11.7]} 18.
Nf4 {[%clk 0:01:55.2]} 18... Qh6 {[%clk 0:01:54.3]} 19. Rh3 {[%clk 0:01:55.5]}
19... Qg5 {[%clk 0:01:27.8]} 20. Rg3 {[%clk 0:01:56.1]} 20... Nxe5 {[%clk
0:01:28.9]} 21. Rxg5 {[%clk 0:01:54.7]} 21... Bxg5 {[%clk 0:01:30.8]} 22. Nh3
{[%clk 0:01:43.6]} 22... Bf6 {[%clk 0:01:17.1]} 23. dxe5 {[%clk 0:01:44]} 23...
Bxe5 {[%clk 0:01:19]} 24. Qf3 {[%clk 0:01:38]} 24... Rfd8 {[%clk 0:01:16.7]} 25.
Ng5 {[%clk 0:01:33.7]} 25... Bf6 {[%clk 0:01:17.7]} 26. Qh5 {[%clk 0:01:30.8]}
26... Bxg5 {[%clk 0:01:17]} 27. Qxg5 {[%clk 0:01:32.7]} 27... Rd7 {[%clk
0:01:15.5]} 28. g3 {[%clk 0:01:27.8]} 28... h6 {[%clk 0:01:14.5]} 29. Qe3 {[%clk
0:01:25]} 29... c5 {[%clk 0:01:14.7]} 30. a4 {[%clk 0:01:23.1]} 30... a5 {[%clk
0:01:12.4]} 31. Rb1 {[%clk 0:01:22.3]} 31... Rd6 {[%clk 0:01:13.3]} 32. Kg2
{[%clk 0:01:22.4]} 32... Rc8 {[%clk 0:01:10.5]} 33. Qf3 {[%clk 0:01:22.6]} 33...
Rcc6 {[%clk 0:01:11]} 34. Rd1 {[%clk 0:01:22.9]} 34... g6 {[%clk 0:01:02.2]} 35.
Rxd6 {[%clk 0:01:22.9]} 35... Rxd6 {[%clk 0:01:03.3]} 36. Qb7 {[%clk 0:01:23.5]}
36... e5 {[%clk 0:01:02.8]} 37. Qb8+ {[%clk 0:01:22.4]} 1-0

[Event "*** Titled Tuesday Blitz"]
[Site "Chess.com"]
[Date "2018.08.07"]
[Round "8"]
[White "NikolaGry"]
[Black "Mikhail_Golubev"]
[Result "1-0"]
[WhiteElo "2521"]
[BlackElo "2438"]
[TimeControl "180+2"]
[EndTime "14:47:18 PDT"]
[Termination "NikolaGry won by resignation"]

1. b3 {[%clk 0:03:01.9]} 1... d6 {[%clk 0:02:58.1]} 2. Bb2 {[%clk 0:03:01.1]}
2... Nd7 {[%clk 0:02:58.9]} 3. c4 {[%clk 0:03:01.5]} 3... Ngf6 {[%clk
0:02:57.3]} 4. e3 {[%clk 0:03:01.7]} 4... g6 {[%clk 0:02:58.2]} 5. Nf3 {[%clk
0:03:01.9]} 5... Bg7 {[%clk 0:02:58.7]} 6. d4 {[%clk 0:03:01.7]} 6... O-O {[%clk
0:02:54.3]} 7. Be2 {[%clk 0:03:02.1]} 7... e5 {[%clk 0:02:50.6]} 8. dxe5 {[%clk
0:02:52.9]} 8... Ng4 {[%clk 0:02:51.1]} 9. O-O {[%clk 0:02:51.7]} 9... Ngxe5
{[%clk 0:02:51.3]} 10. Nc3 {[%clk 0:02:51.1]} 10... Nxf3+ {[%clk 0:02:51.2]} 11.
Bxf3 {[%clk 0:02:31]} 11... Nc5 {[%clk 0:02:46.8]} 12. Qd2 {[%clk 0:02:24.7]}
12... Bf5 {[%clk 0:02:46.4]} 13. Rad1 {[%clk 0:02:19.7]} 13... Nd3 {[%clk
0:02:36.9]} 14. Ba1 {[%clk 0:02:17.7]} 14... Ne5 {[%clk 0:02:37.8]} 15. Bxb7
{[%clk 0:02:15.3]} 15... Rb8 {[%clk 0:02:35.3]} 16. Be4 {[%clk 0:02:13.1]} 16...
Bxe4 {[%clk 0:02:26.7]} 17. Nxe4 {[%clk 0:02:13.1]} 17... Qh4 {[%clk 0:02:21.6]}
18. f4 {[%clk 0:01:31.9]} 18... Ng4 {[%clk 0:02:18.9]} 19. h3 {[%clk 0:01:25.5]}
19... Bxa1 {[%clk 0:02:18.5]} 20. hxg4 {[%clk 0:01:08.8]} 20... Bg7 {[%clk
0:02:17.3]} 21. Qe2 {[%clk 0:01:05.5]} 21... Rbe8 {[%clk 0:02:14.6]} 22. Qf3
{[%clk 0:01:06]} 22... Qe7 {[%clk 0:02:12.9]} 23. Nf2 {[%clk 0:00:55.7]} 23...
Qxe3 {[%clk 0:02:13.1]} 24. Qxe3 {[%clk 0:00:51.5]} 24... Rxe3 {[%clk
0:02:13.6]} 25. Rfe1 {[%clk 0:00:49.7]} 25... Rfe8 {[%clk 0:02:10.7]} 26. Kf1
{[%clk 0:00:40.2]} 26... Bc3 {[%clk 0:02:07.5]} 27. Rxe3 {[%clk 0:00:40.2]}
27... Rxe3 {[%clk 0:02:08.1]} 28. Nd3 {[%clk 0:00:37.3]} 28... Rg3 {[%clk
0:02:01.3]} 29. g5 {[%clk 0:00:36.4]} 29... Kf8 {[%clk 0:01:55.2]} 30. Kf2
{[%clk 0:00:33.7]} 30... Rg4 {[%clk 0:01:53.7]} 31. g3 {[%clk 0:00:34.4]} 31...
Kg7 {[%clk 0:01:38.6]} 32. Kf3 {[%clk 0:00:32.7]} 1-0

[Event "*** Titled Tuesday Blitz"]
[Site "Chess.com"]
[Date "2018.08.07"]
[Round "8"]
[White "jposthuma"]
[Black "inegrepus"]
[Result "0-1"]
[WhiteElo "2352"]
[BlackElo "2207"]
[TimeControl "180+2"]
[EndTime "14:47:25 PDT"]
[Termination "inegrepus won by checkmate"]

1. d4 {[%clk 0:03:01.9]} 1... Nf6 {[%clk 0:02:59.5]} 2. c4 {[%clk 0:03:03.4]}
2... e6 {[%clk 0:03:00.7]} 3. g3 {[%clk 0:03:04.7]} 3... c5 {[%clk 0:03:01.4]}
4. Nf3 {[%clk 0:03:05.5]} 4... cxd4 {[%clk 0:03:03]} 5. Nxd4 {[%clk 0:03:07.4]}
5... d5 {[%clk 0:02:58.7]} 6. Bg2 {[%clk 0:03:08.2]} 6... dxc4 {[%clk
0:02:59.2]} 7. O-O {[%clk 0:03:03.9]} 7... a6 {[%clk 0:02:58.4]} 8. Qa4+ {[%clk
0:02:51.2]} 8... Nbd7 {[%clk 0:02:17.7]} 9. Na3 {[%clk 0:02:28.8]} 9... Bxa3
{[%clk 0:02:13.1]} 10. bxa3 {[%clk 0:02:03]} 10... O-O {[%clk 0:02:09.5]} 11.
Qxc4 {[%clk 0:01:57.6]} 11... Nb6 {[%clk 0:02:03.9]} 12. Qd3 {[%clk 0:01:41.7]}
12... e5 {[%clk 0:01:55.1]} 13. Nf5 {[%clk 0:01:42.3]} 13... Qxd3 {[%clk
0:01:54.2]} 14. Ne7+ {[%clk 0:01:42.9]} 14... Kh8 {[%clk 0:01:54.9]} 15. exd3
{[%clk 0:01:43.6]} 15... Be6 {[%clk 0:01:30.9]} 16. Rb1 {[%clk 0:01:16.5]} 16...
Na4 {[%clk 0:01:20.6]} 17. Bxb7 {[%clk 0:01:03.7]} 17... Ra7 {[%clk 0:01:17.7]}
18. Nc6 {[%clk 0:01:02.3]} 18... Nc3 {[%clk 0:00:51.3]} 19. Rb2 {[%clk
0:00:32.7]} 19... Rxb7 {[%clk 0:00:51.8]} 20. Rxb7 {[%clk 0:00:32.3]} 20... Bd5
{[%clk 0:00:52.7]} 21. Rb6 {[%clk 0:00:21.2]} 21... Ne2# {[%clk 0:00:52.6]} 0-1

[Event "*** Titled Tuesday Blitz"]
[Site "Chess.com"]
[Date "2018.08.07"]
[Round "8"]
[White "Cryptochess"]
[Black "nihalsarin"]
[Result "0-1"]
[WhiteElo "2504"]
[BlackElo "2757"]
[TimeControl "180+2"]
[EndTime "14:47:27 PDT"]
[Termination "nihalsarin won by resignation"]

1. e4 {[%clk 0:03:01.9]} 1... c5 {[%clk 0:02:56.9]} 2. Nc3 {[%clk 0:03:02.9]}
2... d6 {[%clk 0:02:58.8]} 3. g3 {[%clk 0:03:04.4]} 3... g6 {[%clk 0:02:58.4]}
4. Bg2 {[%clk 0:03:05.8]} 4... Bg7 {[%clk 0:03:00.3]} 5. d3 {[%clk 0:03:07.2]}
5... Nf6 {[%clk 0:03:01.3]} 6. Be3 {[%clk 0:03:08.3]} 6... O-O {[%clk
0:03:03.2]} 7. h3 {[%clk 0:03:09.7]} 7... Nc6 {[%clk 0:03:04.2]} 8. Qd2 {[%clk
0:03:11]} 8... Rb8 {[%clk 0:03:05.5]} 9. Nf3 {[%clk 0:03:11.4]} 9... b5 {[%clk
0:03:06.8]} 10. O-O {[%clk 0:03:11.7]} 10... b4 {[%clk 0:03:08.3]} 11. Nd1
{[%clk 0:03:11.7]} 11... Nd7 {[%clk 0:03:09.6]} 12. Nh4 {[%clk 0:03:12.2]} 12...
a5 {[%clk 0:03:10.2]} 13. f4 {[%clk 0:03:13.4]} 13... a4 {[%clk 0:03:11.7]} 14.
Rb1 {[%clk 0:02:55]} 14... e6 {[%clk 0:03:12]} 15. f5 {[%clk 0:02:54.7]} 15...
Nde5 {[%clk 0:03:06.3]} 16. Bh6 {[%clk 0:02:35.6]} 16... f6 {[%clk 0:03:00.8]}
17. Bxg7 {[%clk 0:02:21.8]} 17... Kxg7 {[%clk 0:03:02.7]} 18. fxe6 {[%clk
0:02:21.5]} 18... Bxe6 {[%clk 0:03:04.6]} 19. Ne3 {[%clk 0:02:22.4]} 19... Qd7
{[%clk 0:02:56.4]} 20. Kh2 {[%clk 0:02:21]} 20... Bxa2 {[%clk 0:02:42.8]} 21.
Ra1 {[%clk 0:02:21.8]} 21... Be6 {[%clk 0:02:44.7]} 22. Rxa4 {[%clk 0:02:20]}
22... Nd4 {[%clk 0:02:46.6]} 23. Ra6 {[%clk 0:02:11.9]} 23... Ra8 {[%clk
0:02:45.1]} 24. Rfa1 {[%clk 0:02:03.5]} 24... Rxa6 {[%clk 0:02:40.5]} 25. Rxa6
{[%clk 0:02:05.4]} 25... g5 {[%clk 0:02:39.3]} 26. Nhf5+ {[%clk 0:01:59.6]}
26... Bxf5 {[%clk 0:02:37.4]} 27. Nxf5+ {[%clk 0:02:00.5]} 27... Qxf5 {[%clk
0:02:38.9]} 28. exf5 {[%clk 0:01:31.5]} 28... Nef3+ {[%clk 0:02:36.6]} 29. Bxf3
{[%clk 0:01:32]} 29... Nxf3+ {[%clk 0:02:38.4]} 30. Kg2 {[%clk 0:01:33.6]} 30...
Nxd2 {[%clk 0:02:40.3]} 31. Rxd6 {[%clk 0:01:32.9]} 31... b3 {[%clk 0:02:38.3]}
32. c3 {[%clk 0:01:31.5]} 32... Ra8 {[%clk 0:02:38.6]} 33. Rd7+ {[%clk
0:01:21.4]} 33... Kg8 {[%clk 0:02:37.4]} 34. h4 {[%clk 0:00:53]} 34... gxh4
{[%clk 0:02:36]} 35. gxh4 {[%clk 0:00:53.2]} 35... Ra2 {[%clk 0:02:37.5]} 36. h5
{[%clk 0:00:54.7]} 36... Rxb2 {[%clk 0:02:36.8]} 37. h6 {[%clk 0:00:56.2]} 37...
Ne4+ {[%clk 0:02:33.9]} 38. Kf3 {[%clk 0:00:53.9]} 38... Ng5+ {[%clk 0:02:35.8]}
39. Kg3 {[%clk 0:00:48.8]} 39... Rc2 {[%clk 0:02:36.2]} 40. Rg7+ {[%clk
0:00:49.2]} 40... Kf8 {[%clk 0:02:37.2]} 41. Rb7 {[%clk 0:00:50.1]} 41... Rxc3
{[%clk 0:02:37.9]} 42. Kg4 {[%clk 0:00:50.9]} 42... Rxd3 {[%clk 0:02:38.5]} 43.
Rb8+ {[%clk 0:00:49.4]} 43... Ke7 {[%clk 0:02:38.4]} 44. Rb6 {[%clk 0:00:50.4]}
44... Rd4+ {[%clk 0:02:38.5]} 45. Kh5 {[%clk 0:00:51.4]} 45... Rb4 {[%clk
0:02:27.3]} 46. Rc6 {[%clk 0:00:43.3]} 46... Rb7 {[%clk 0:02:25.5]} 47. Rxc5
{[%clk 0:00:39.6]} 47... b2 {[%clk 0:02:26.8]} 48. Rc4 {[%clk 0:00:40.4]} 48...
b1=Q {[%clk 0:02:25.4]} 49. Re4+ {[%clk 0:00:42.3]} 49... Nxe4 {[%clk
0:02:25.4]} 0-1